[Event "Titled Tuesday Blitz September 28 2021"]
[White "Gritsenko, Nikolai"]
[Black "Andreikin, Dmitry"]
[WhiteFideId "14112493"]
[BlackFideId "4158814"]
[WhiteElo "2389"]
[BlackElo "2736"]
[Result "0-1"]
[Round "11"]
[TimeControl "180+1"]
[Date "2021.09.28"]
[WhiteClock "0:00:13"]
[BlackClock "0:02:24"]

1. d4 {[%clk 0:03:00]}  d5 {[%clk 0:03:00]} 2. Nf3 {[%clk 0:03:00]}  Nf6 {[%clk 0:02:58]} 3. Bf4 {[%clk 0:02:59]}  c5 {[%clk 0:02:56]} 4. e3 {[%clk 0:02:58]}  Nc6 {[%clk 0:02:57]} 5. c3 {[%clk 0:02:58]}  g6 {[%clk 0:02:55]} 6. h3 {[%clk 0:02:57]}  Bg7 {[%clk 0:02:56]} 7. Nbd2 {[%clk 0:02:55]}  O-O {[%clk 0:02:57]} 8. Bd3 {[%clk 0:02:53]}  Nd7 {[%clk 0:02:57]} 9. O-O {[%clk 0:02:50]}  e5 {[%clk 0:02:57]} 10. dxe5 {[%clk 0:02:49]}  Ndxe5 {[%clk 0:02:58]} 11. Nxe5 {[%clk 0:02:45]}  Nxe5 {[%clk 0:02:59]} 12. Be2 {[%clk 0:02:45]}  Be6 {[%clk 0:02:58]} 13. Nf3 {[%clk 0:02:41]}  Nc6 {[%clk 0:02:58]} 14. Qa4 {[%clk 0:02:34]}  Qb6 {[%clk 0:02:55]} 15. Qb5 {[%clk 0:02:17]}  d4 {[%clk 0:02:55]} 16. Bd6 {[%clk 0:02:08]}  dxc3 {[%clk 0:02:53]} 17. bxc3 {[%clk 0:02:07]}  Bxc3 {[%clk 0:02:53]} 18. Rac1 {[%clk 0:02:04]}  Bb4 {[%clk 0:02:46]} 19. Bxc5 {[%clk 0:02:00]}  Bxc5 {[%clk 0:02:44]} 20. Rxc5 {[%clk 0:01:54]}  Qxb5 {[%clk 0:02:44]} 21. Bxb5 {[%clk 0:01:51]}  Nb4 {[%clk 0:02:43]} 22. a3 {[%clk 0:01:46]}  b6 {[%clk 0:02:43]} 23. Rc3 {[%clk 0:01:34]}  Nd5 {[%clk 0:02:42]} 24. Rc2 {[%clk 0:01:25]}  a6 {[%clk 0:02:41]} 25. Bc6 {[%clk 0:01:23]}  Rac8 {[%clk 0:02:41]} 26. Rfc1 {[%clk 0:01:23]}  Ne7 {[%clk 0:02:37]} 27. Bb7 {[%clk 0:01:20]}  Rxc2 {[%clk 0:02:36]} 28. Rxc2 {[%clk 0:01:20]}  Bc8 {[%clk 0:02:36]} 29. Rc7 {[%clk 0:01:07]}  Bxb7 {[%clk 0:02:36]} 30. Rxb7 {[%clk 0:01:07]}  Nd5 {[%clk 0:02:37]} 31. e4 {[%clk 0:01:05]}  Nc3 {[%clk 0:02:38]} 32. Rxb6 {[%clk 0:01:04]}  Nxe4 {[%clk 0:02:38]} 33. Rb4 {[%clk 0:00:50]}  f5 {[%clk 0:02:36]} 34. h4 {[%clk 0:00:38]}  Rc8 {[%clk 0:02:35]} 35. Ng5 {[%clk 0:00:28]}  Rc1+ {[%clk 0:02:31]} 36. Kh2 {[%clk 0:00:28]}  Nxf2 {[%clk 0:02:32]} 37. Rb8+ {[%clk 0:00:28]}  Kg7 {[%clk 0:02:32]} 38. Rb7+ {[%clk 0:00:28]}  Kf6 {[%clk 0:02:32]} 39. Nxh7+ {[%clk 0:00:19]}  Ke5 {[%clk 0:02:32]} 40. Re7+ {[%clk 0:00:17]}  Kf4 {[%clk 0:02:30]} 41. g3+ {[%clk 0:00:16]}  Kg4 {[%clk 0:02:28]} 42. Re3 {[%clk 0:00:15]}  Ne4 {[%clk 0:02:25]} 43. Nf6+ {[%clk 0:00:13]}  Nxf6 {[%clk 0:02:24]} 0-1


[Site "https://www.chess.com"]

[Event "Titled Tuesday Blitz September 28 2021"]
[White "Hansen, Eric"]
[Black "Bologan, Victor"]
[WhiteFideId "2606771"]
[BlackFideId "13900048"]
[WhiteElo "2568"]
[BlackElo "2511"]
[Result "1-0"]
[Round "11"]
[TimeControl "180+1"]
[Date "2021.09.28"]
[WhiteClock "0:00:05"]
[BlackClock "0:00:04"]

1. Nf3 {[%clk 0:03:00]}  Nf6 {[%clk 0:02:58]} 2. g3 {[%clk 0:03:01]}  g6 {[%clk 0:02:58]} 3. Bg2 {[%clk 0:03:02]}  Bg7 {[%clk 0:02:58]} 4. O-O {[%clk 0:03:02]}  O-O {[%clk 0:02:59]} 5. c4 {[%clk 0:03:01]}  d6 {[%clk 0:02:57]} 6. d4 {[%clk 0:02:57]}  Nc6 {[%clk 0:02:56]} 7. Nc3 {[%clk 0:02:57]}  a6 {[%clk 0:02:55]} 8. b3 {[%clk 0:02:50]}  Rb8 {[%clk 0:02:54]} 9. d5 {[%clk 0:02:48]}  Na5 {[%clk 0:02:54]} 10. Be3 {[%clk 0:02:14]}  c5 {[%clk 0:02:43]} 11. dxc6 {[%clk 0:02:09]}  bxc6 {[%clk 0:02:42]} 12. Rc1 {[%clk 0:02:01]}  c5 {[%clk 0:02:38]} 13. h3 {[%clk 0:01:56]}  Bb7 {[%clk 0:02:37]} 14. Qd2 {[%clk 0:01:56]}  Re8 {[%clk 0:02:34]} 15. Rfd1 {[%clk 0:01:54]}  Nc6 {[%clk 0:02:29]} 16. Bg5 {[%clk 0:01:51]}  Qa5 {[%clk 0:02:23]} 17. Ne1 {[%clk 0:01:25]}  Ba8 {[%clk 0:02:00]} 18. Nd3 {[%clk 0:01:22]}  Nd4 {[%clk 0:01:45]} 19. Bxa8 {[%clk 0:01:16]}  Rxa8 {[%clk 0:01:45]} 20. Bxf6 {[%clk 0:01:02]}  Bxf6 {[%clk 0:01:42]} 21. Nd5 {[%clk 0:00:57]}  Qd8 {[%clk 0:01:38]} 22. Ne1 {[%clk 0:00:42]}  Bg7 {[%clk 0:01:24]} 23. e3 {[%clk 0:00:42]}  Nc6 {[%clk 0:01:24]} 24. Nf3 {[%clk 0:00:42]}  Qb8 {[%clk 0:01:20]} 25. h4 {[%clk 0:00:42]}  h5 {[%clk 0:01:09]} 26. Ng5 {[%clk 0:00:38]}  Qb7 {[%clk 0:01:07]} 27. Qe2 {[%clk 0:00:37]}  Ne5 {[%clk 0:01:04]} 28. Nf3 {[%clk 0:00:26]}  Nd7 {[%clk 0:00:56]} 29. Rd2 {[%clk 0:00:22]}  a5 {[%clk 0:00:54]} 30. Qd1 {[%clk 0:00:17]}  Qc6 {[%clk 0:00:51]} 31. Rb1 {[%clk 0:00:11]}  a4 {[%clk 0:00:47]} 32. Ne1 {[%clk 0:00:09]}  axb3 {[%clk 0:00:46]} 33. axb3 {[%clk 0:00:10]}  Ne5 {[%clk 0:00:44]} 34. Nf3 {[%clk 0:00:10]}  Nd7 {[%clk 0:00:43]} 35. Ne1 {[%clk 0:00:10]}  Ra7 {[%clk 0:00:39]} 36. Nd3 {[%clk 0:00:10]}  Kf8 {[%clk 0:00:37]} 37. Rc1 {[%clk 0:00:07]}  Rea8 {[%clk 0:00:36]} 38. b4 {[%clk 0:00:07]}  cxb4 {[%clk 0:00:34]} 39. N5xb4 {[%clk 0:00:08]}  Qe4 {[%clk 0:00:31]} 40. Nd5 {[%clk 0:00:02]}  Ra1 {[%clk 0:00:24]} 41. Rdc2 {[%clk 0:00:03]}  R1a3 {[%clk 0:00:22]} 42. Ne1 {[%clk 0:00:02]}  e6 {[%clk 0:00:19]} 43. Nb4 {[%clk 0:00:02]}  Be5 {[%clk 0:00:17]} 44. Nbd3 {[%clk 0:00:02]}  Ke7 {[%clk 0:00:15]} 45. c5 {[%clk 0:00:02]}  dxc5 {[%clk 0:00:15]} 46. Nxc5 {[%clk 0:00:03]}  Nxc5 {[%clk 0:00:14]} 47. Rxc5 {[%clk 0:00:04]}  Bd6 {[%clk 0:00:14]} 48. R5c4 {[%clk 0:00:04]}  Qd5 {[%clk 0:00:14]} 49. Rd4 {[%clk 0:00:04]}  Qe5 {[%clk 0:00:10]} 50. Nf3 {[%clk 0:00:04]}  Qf5 {[%clk 0:00:04]} 51. Rxd6 {[%clk 0:00:05]} 1-0


[Site "https://www.chess.com"]

[Event "Titled Tuesday Blitz September 28 2021"]
[White "Havanecz, Bianka"]
[Black "AleksanderHnydiuk"]
[WhiteFideId "704814"]
[WhiteElo "2419"]
[BlackElo "2609"]
[Result "1-0"]
[Round "11"]
[TimeControl "180+1"]
[Date "2021.09.28"]
[WhiteClock "0:00:09"]
[BlackClock "0:00:01"]

1. d4 {[%clk 0:03:00]}  Nf6 {[%clk 0:02:59]} 2. c4 {[%clk 0:03:00]}  g6 {[%clk 0:02:59]} 3. Nc3 {[%clk 0:03:00]}  Bg7 {[%clk 0:03:00]} 4. e4 {[%clk 0:03:00]}  d6 {[%clk 0:03:00]} 5. Bd3 {[%clk 0:03:00]}  O-O {[%clk 0:03:01]} 6. Nge2 {[%clk 0:03:00]}  Nc6 {[%clk 0:03:01]} 7. Bc2 {[%clk 0:02:55]}  Nd7 {[%clk 0:02:56]} 8. O-O {[%clk 0:02:50]}  e5 {[%clk 0:02:51]} 9. d5 {[%clk 0:02:43]}  Nb4 {[%clk 0:02:51]} 10. Bb1 {[%clk 0:02:41]}  f5 {[%clk 0:02:52]} 11. exf5 {[%clk 0:02:36]}  gxf5 {[%clk 0:02:51]} 12. a3 {[%clk 0:02:35]}  Na6 {[%clk 0:02:51]} 13. b4 {[%clk 0:02:21]}  Qh4 {[%clk 0:02:51]} 14. Qb3 {[%clk 0:02:15]}  Nf6 {[%clk 0:02:28]} 15. f4 {[%clk 0:02:01]}  Bd7 {[%clk 0:02:14]} 16. fxe5 {[%clk 0:01:44]}  dxe5 {[%clk 0:02:15]} 17. Ra2 {[%clk 0:01:30]}  f4 {[%clk 0:02:06]} 18. Ne4 {[%clk 0:01:24]}  Nxe4 {[%clk 0:01:45]} 19. Bxe4 {[%clk 0:01:25]}  Rf6 {[%clk 0:01:45]} 20. c5 {[%clk 0:01:00]}  Kh8 {[%clk 0:01:34]} 21. Bd2 {[%clk 0:00:49]}  Rh6 {[%clk 0:01:31]} 22. h3 {[%clk 0:00:45]}  Rg8 {[%clk 0:01:29]} 23. Be1 {[%clk 0:00:42]}  Qg5 {[%clk 0:01:20]} 24. Kh2 {[%clk 0:00:34]}  Bf6 {[%clk 0:01:14]} 25. Ng1 {[%clk 0:00:27]}  Qg7 {[%clk 0:00:47]} 26. c6 {[%clk 0:00:16]}  bxc6 {[%clk 0:00:43]} 27. dxc6 {[%clk 0:00:17]}  Be8 {[%clk 0:00:40]} 28. Qd3 {[%clk 0:00:16]}  Nb8 {[%clk 0:00:37]} 29. b5 {[%clk 0:00:17]}  Qe7 {[%clk 0:00:27]} 30. Bb4 {[%clk 0:00:16]}  Qg7 {[%clk 0:00:22]} 31. a4 {[%clk 0:00:15]}  Bh4 {[%clk 0:00:21]} 32. Be1 {[%clk 0:00:14]}  Be7 {[%clk 0:00:17]} 33. Rd2 {[%clk 0:00:13]}  Qf6 {[%clk 0:00:13]} 34. Nf3 {[%clk 0:00:12]}  Bf7 {[%clk 0:00:08]} 35. Qc3 {[%clk 0:00:11]}  Bd6 {[%clk 0:00:08]} 36. Bf2 {[%clk 0:00:11]}  Be6 {[%clk 0:00:08]} 37. Bc5 {[%clk 0:00:11]}  Bxc5 {[%clk 0:00:06]} 38. Qxc5 {[%clk 0:00:11]}  Rg3 {[%clk 0:00:05]} 39. Ng1 {[%clk 0:00:11]}  Qg5 {[%clk 0:00:02]} 40. Qf8+ {[%clk 0:00:10]}  Bg8 {[%clk 0:00:01]} 41. Rd8 {[%clk 0:00:09]} 1-0


[Site "https://www.chess.com"]

[Event "Titled Tuesday Blitz September 28 2021"]
[White "Hjartarson, Johann"]
[Black "Martin Carmona, Gaston Manuel"]
[WhiteFideId "2300044"]
[BlackFideId "22284567"]
[WhiteElo "2502"]
[BlackElo "2161"]
[Result "1-0"]
[Round "11"]
[TimeControl "180+1"]
[Date "2021.09.28"]
[WhiteClock "0:00:25"]
[BlackClock "0:00:04"]

1. e4 {[%clk 0:03:00]}  e6 {[%clk 0:02:44]} 2. d4 {[%clk 0:03:00]}  d5 {[%clk 0:02:45]} 3. Nd2 {[%clk 0:02:59]}  dxe4 {[%clk 0:02:43]} 4. Nxe4 {[%clk 0:02:59]}  Bd7 {[%clk 0:02:44]} 5. Nf3 {[%clk 0:02:57]}  Bc6 {[%clk 0:02:44]} 6. Bd3 {[%clk 0:02:57]}  Nd7 {[%clk 0:02:45]} 7. O-O {[%clk 0:02:56]}  Ngf6 {[%clk 0:02:45]} 8. Bg5 {[%clk 0:02:50]}  Be7 {[%clk 0:02:38]} 9. Ng3 {[%clk 0:02:49]}  Bxf3 {[%clk 0:02:34]} 10. Qxf3 {[%clk 0:02:48]}  c6 {[%clk 0:02:35]} 11. Rfe1 {[%clk 0:02:46]}  O-O {[%clk 0:02:33]} 12. c4 {[%clk 0:02:45]}  Qb6 {[%clk 0:02:21]} 13. b3 {[%clk 0:02:17]}  a5 {[%clk 0:02:19]} 14. Rad1 {[%clk 0:02:10]}  a4 {[%clk 0:02:13]} 15. h4 {[%clk 0:02:06]}  axb3 {[%clk 0:02:13]} 16. axb3 {[%clk 0:02:04]}  Ra3 {[%clk 0:02:11]} 17. Bc2 {[%clk 0:02:02]}  Ra2 {[%clk 0:02:11]} 18. Qd3 {[%clk 0:02:00]}  Rfa8 {[%clk 0:01:41]} 19. Ne4 {[%clk 0:01:40]}  h6 {[%clk 0:01:20]} 20. Nxf6+ {[%clk 0:01:32]}  Nxf6 {[%clk 0:01:20]} 21. Bxf6 {[%clk 0:01:20]}  Bxf6 {[%clk 0:01:21]} 22. d5 {[%clk 0:01:20]}  cxd5 {[%clk 0:01:19]} 23. cxd5 {[%clk 0:01:20]}  Qc5 {[%clk 0:00:36]} 24. Re2 {[%clk 0:01:17]}  Ra1 {[%clk 0:00:31]} 25. dxe6 {[%clk 0:01:02]}  Rxd1+ {[%clk 0:00:29]} 26. Bxd1 {[%clk 0:01:01]}  Rd8 {[%clk 0:00:19]} 27. exf7+ {[%clk 0:00:48]}  Kxf7 {[%clk 0:00:16]} 28. Qb1 {[%clk 0:00:44]}  Bxh4 {[%clk 0:00:13]} 29. b4 {[%clk 0:00:35]}  Qd6 {[%clk 0:00:13]} 30. Bb3+ {[%clk 0:00:34]}  Kf8 {[%clk 0:00:13]} 31. Qh7 {[%clk 0:00:26]}  Qd1+ {[%clk 0:00:03]} 32. Bxd1 {[%clk 0:00:25]}  Rxd1+ {[%clk 0:00:04]} 33. Kh2 {[%clk 0:00:25]} 1-0


[Site "https://www.chess.com"]

[Event "Titled Tuesday Blitz September 28 2021"]
[White "Ibrahimli, Murad"]
[Black "Salinas Herrera, Pablo"]
[WhiteFideId "13410229"]
[BlackFideId "3407128"]
[WhiteElo "2109"]
[BlackElo "2541"]
[Result "0-1"]
[Round "11"]
[TimeControl "180+1"]
[Date "2021.09.28"]
[WhiteClock "0:00:05"]
[BlackClock "0:00:42"]

1. c4 {[%clk 0:03:00]}  c6 {[%clk 0:02:59]} 2. Nc3 {[%clk 0:03:00]}  d5 {[%clk 0:02:59]} 3. d4 {[%clk 0:03:01]}  Nf6 {[%clk 0:03:00]} 4. e3 {[%clk 0:03:01]}  Nbd7 {[%clk 0:03:00]} 5. Nf3 {[%clk 0:03:02]}  e6 {[%clk 0:03:00]} 6. Qc2 {[%clk 0:03:02]}  Bd6 {[%clk 0:02:59]} 7. Bd3 {[%clk 0:03:01]}  O-O {[%clk 0:02:58]} 8. O-O {[%clk 0:03:00]}  dxc4 {[%clk 0:02:58]} 9. Bxc4 {[%clk 0:03:01]}  a6 {[%clk 0:02:58]} 10. a4 {[%clk 0:02:59]}  Qc7 {[%clk 0:02:58]} 11. h3 {[%clk 0:02:52]}  b5 {[%clk 0:02:49]} 12. axb5 {[%clk 0:02:47]}  cxb5 {[%clk 0:02:50]} 13. Bd3 {[%clk 0:02:42]}  Bb7 {[%clk 0:02:48]} 14. Qe2 {[%clk 0:02:37]}  e5 {[%clk 0:02:46]} 15. Bf5 {[%clk 0:02:25]}  Rfe8 {[%clk 0:02:45]} 16. Rd1 {[%clk 0:02:22]}  exd4 {[%clk 0:02:36]} 17. Nxd4 {[%clk 0:02:19]}  Nc5 {[%clk 0:02:34]} 18. Bd2 {[%clk 0:01:48]}  Bh2+ {[%clk 0:02:32]} 19. Kh1 {[%clk 0:01:47]}  Be5 {[%clk 0:02:33]} 20. Nf3 {[%clk 0:01:34]}  Nb3 {[%clk 0:02:32]} 21. Rab1 {[%clk 0:01:32]}  Bd6 {[%clk 0:02:22]} 22. Be1 {[%clk 0:01:30]}  Rad8 {[%clk 0:02:17]} 23. Bc2 {[%clk 0:01:26]}  Na5 {[%clk 0:02:14]} 24. Rbc1 {[%clk 0:01:25]}  Qb6 {[%clk 0:02:05]} 25. Ng5 {[%clk 0:01:18]}  Nc4 {[%clk 0:01:59]} 26. b3 {[%clk 0:01:06]}  Na3 {[%clk 0:01:59]} 27. Bd3 {[%clk 0:01:06]}  Bb8 {[%clk 0:01:57]} 28. Nf3 {[%clk 0:00:46]}  Rd7 {[%clk 0:01:32]} 29. Na2 {[%clk 0:00:39]}  a5 {[%clk 0:01:26]} 30. Nc3 {[%clk 0:00:37]}  Bc6 {[%clk 0:01:19]} 31. Qb2 {[%clk 0:00:22]}  b4 {[%clk 0:01:04]} 32. Na4 {[%clk 0:00:22]}  Qc7 {[%clk 0:01:02]} 33. Be2 {[%clk 0:00:15]}  Rxd1 {[%clk 0:01:02]} 34. Bxd1 {[%clk 0:00:14]}  Qd6 {[%clk 0:01:02]} 35. g3 {[%clk 0:00:12]}  Qxd1 {[%clk 0:00:54]} 36. Rxd1 {[%clk 0:00:12]}  Bxf3+ {[%clk 0:00:55]} 37. Kg1 {[%clk 0:00:13]}  Bxd1 {[%clk 0:00:56]} 38. Nc5 {[%clk 0:00:07]}  Rc8 {[%clk 0:00:52]} 39. Qc1 {[%clk 0:00:07]}  Bxb3 {[%clk 0:00:51]} 40. Qd2 {[%clk 0:00:06]}  h5 {[%clk 0:00:44]} 41. Qd3 {[%clk 0:00:06]}  Bc4 {[%clk 0:00:43]} 42. Qd4 {[%clk 0:00:05]}  Ba7 {[%clk 0:00:42]} 0-1


[Site "https://www.chess.com"]

[Event "Titled Tuesday Blitz September 28 2021"]
[White "Kamsky, Gata"]
[Black "Reprintsev, Alexander"]
[WhiteFideId "2000024"]
[BlackFideId "14100541"]
[WhiteElo "2603"]
[BlackElo "2126"]
[Result "1-0"]
[Round "11"]
[TimeControl "180+1"]
[Date "2021.09.28"]
[WhiteClock "0:01:41"]
[BlackClock "0:00:15"]

1. e4 {[%clk 0:03:00]}  d5 {[%clk 0:02:58]} 2. exd5 {[%clk 0:02:59]}  Qxd5 {[%clk 0:02:58]} 3. Nc3 {[%clk 0:02:58]}  Qa5 {[%clk 0:02:57]} 4. Bc4 {[%clk 0:02:56]}  Nf6 {[%clk 0:02:55]} 5. Nge2 {[%clk 0:02:55]}  Nc6 {[%clk 0:02:52]} 6. O-O {[%clk 0:02:51]}  e5 {[%clk 0:02:52]} 7. d3 {[%clk 0:02:46]}  Bf5 {[%clk 0:02:36]} 8. Bd2 {[%clk 0:02:34]}  O-O-O {[%clk 0:02:34]} 9. Ne4 {[%clk 0:02:29]}  Qb6 {[%clk 0:02:24]} 10. Ng5 {[%clk 0:02:29]}  Bg6 {[%clk 0:02:18]} 11. Bxf7 {[%clk 0:02:28]}  Qxb2 {[%clk 0:02:07]} 12. Bxg6 {[%clk 0:02:27]}  hxg6 {[%clk 0:02:08]} 13. Nf7 {[%clk 0:02:26]}  Bc5 {[%clk 0:02:00]} 14. Nxd8 {[%clk 0:02:25]}  Rxd8 {[%clk 0:01:51]} 15. Bc3 {[%clk 0:02:20]}  Qa3 {[%clk 0:01:47]} 16. Qb1 {[%clk 0:02:11]}  Nd5 {[%clk 0:01:41]} 17. Bd2 {[%clk 0:02:09]}  Rf8 {[%clk 0:01:33]} 18. Qb3 {[%clk 0:02:07]}  Nb6 {[%clk 0:00:42]} 19. Qxa3 {[%clk 0:02:05]}  Bxa3 {[%clk 0:00:43]} 20. Rab1 {[%clk 0:02:05]}  a6 {[%clk 0:00:39]} 21. g3 {[%clk 0:02:04]}  Bc5 {[%clk 0:00:38]} 22. Kg2 {[%clk 0:02:04]}  Nd5 {[%clk 0:00:31]} 23. h4 {[%clk 0:01:57]}  b5 {[%clk 0:00:30]} 24. c4 {[%clk 0:01:49]}  Ndb4 {[%clk 0:00:23]} 25. cxb5 {[%clk 0:01:48]}  axb5 {[%clk 0:00:24]} 26. Be3 {[%clk 0:01:43]}  Nxd3 {[%clk 0:00:15]} 27. Bxc5 {[%clk 0:01:42]}  Nxc5 {[%clk 0:00:15]} 28. Rbc1 {[%clk 0:01:41]} 1-0


[Site "https://www.chess.com"]

[Event "Titled Tuesday Blitz September 28 2021"]
[White "Krzywda, Andrzej"]
[Black "Coto Mederos, Michel"]
[WhiteFideId "1114565"]
[BlackFideId "3508528"]
[WhiteElo "2139"]
[BlackElo "2427"]
[Result "0-1"]
[Round "11"]
[TimeControl "180+1"]
[Date "2021.09.28"]
[WhiteClock "0:00:04"]
[BlackClock "0:00:15"]

1. e4 {[%clk 0:03:00]}  d5 {[%clk 0:02:56]} 2. exd5 {[%clk 0:03:00]}  Qxd5 {[%clk 0:02:57]} 3. Nf3 {[%clk 0:03:00]}  Nf6 {[%clk 0:02:57]} 4. Be2 {[%clk 0:02:58]}  Bf5 {[%clk 0:02:55]} 5. d4 {[%clk 0:02:58]}  c6 {[%clk 0:02:55]} 6. Nc3 {[%clk 0:02:58]}  Qa5 {[%clk 0:02:53]} 7. Bd2 {[%clk 0:02:56]}  e6 {[%clk 0:02:53]} 8. O-O {[%clk 0:02:54]}  Qc7 {[%clk 0:02:51]} 9. Ne5 {[%clk 0:02:52]}  Bd6 {[%clk 0:02:48]} 10. f4 {[%clk 0:02:48]}  Ne4 {[%clk 0:02:30]} 11. g4 {[%clk 0:02:40]}  Nxc3 {[%clk 0:02:28]} 12. bxc3 {[%clk 0:02:31]}  Be4 {[%clk 0:02:28]} 13. Bf3 {[%clk 0:02:26]}  Bxf3 {[%clk 0:02:27]} 14. Qxf3 {[%clk 0:02:26]}  Nd7 {[%clk 0:02:10]} 15. Nc4 {[%clk 0:02:22]}  O-O {[%clk 0:02:02]} 16. Rab1 {[%clk 0:02:18]}  b5 {[%clk 0:01:58]} 17. Ne5 {[%clk 0:02:09]}  Rac8 {[%clk 0:01:52]} 18. Nd3 {[%clk 0:02:07]}  a6 {[%clk 0:01:47]} 19. Rf2 {[%clk 0:01:59]}  c5 {[%clk 0:01:46]} 20. Be3 {[%clk 0:01:43]}  cxd4 {[%clk 0:01:40]} 21. Bxd4 {[%clk 0:01:28]}  e5 {[%clk 0:01:37]} 22. fxe5 {[%clk 0:01:12]}  Nxe5 {[%clk 0:01:38]} 23. Qf5 {[%clk 0:00:57]}  Nxd3 {[%clk 0:01:34]} 24. cxd3 {[%clk 0:00:58]}  Bc5 {[%clk 0:01:33]} 25. Bxc5 {[%clk 0:00:32]}  Qxc5 {[%clk 0:01:34]} 26. Rb3 {[%clk 0:00:25]}  Qe3 {[%clk 0:01:29]} 27. c4 {[%clk 0:00:21]}  bxc4 {[%clk 0:01:17]} 28. dxc4 {[%clk 0:00:21]}  Qc1+ {[%clk 0:01:15]} 29. Kg2 {[%clk 0:00:17]}  Qxc4 {[%clk 0:01:12]} 30. Rh3 {[%clk 0:00:17]}  h6 {[%clk 0:00:48]} 31. g5 {[%clk 0:00:14]}  Rc5 {[%clk 0:00:47]} 32. Qf4 {[%clk 0:00:07]}  Rxg5+ {[%clk 0:00:45]} 33. Kh1 {[%clk 0:00:07]}  Qd5+ {[%clk 0:00:39]} 34. Rhf3 {[%clk 0:00:05]}  f6 {[%clk 0:00:25]} 35. h4 {[%clk 0:00:05]}  Re5 {[%clk 0:00:20]} 36. Kh2 {[%clk 0:00:06]}  Re4 {[%clk 0:00:19]} 37. Qg3 {[%clk 0:00:05]}  Qd4 {[%clk 0:00:19]} 38. Rg2 {[%clk 0:00:03]}  Rxh4+ {[%clk 0:00:18]} 39. Qxh4 {[%clk 0:00:01]}  Qxh4+ {[%clk 0:00:17]} 40. Rh3 {[%clk 0:00:02]}  Qf4+ {[%clk 0:00:17]} 41. Rhg3 {[%clk 0:00:03]}  g5 {[%clk 0:00:16]} 42. Kh3 {[%clk 0:00:04]}  Qh4# {[%clk 0:00:15]} 0-1


[Site "https://www.chess.com"]

[Event "Titled Tuesday Blitz September 28 2021"]
[White "Le, Tuan Minh"]
[Black "Yeletsky, Ivan"]
[WhiteFideId "12401153"]
[BlackFideId "24180327"]
[WhiteElo "2450"]
[BlackElo "2344"]
[Result "1/2-1/2"]
[Round "11"]
[TimeControl "180+1"]
[Date "2021.09.28"]
[WhiteClock "0:00:04"]
[BlackClock "0:00:29"]

1. d4 {[%clk 0:03:00]}  Nf6 {[%clk 0:02:59]} 2. Nf3 {[%clk 0:03:01]}  d5 {[%clk 0:02:59]} 3. Bf4 {[%clk 0:03:02]}  e6 {[%clk 0:03:00]} 4. e3 {[%clk 0:03:02]}  Bd6 {[%clk 0:03:00]} 5. Nbd2 {[%clk 0:03:01]}  O-O {[%clk 0:03:00]} 6. c3 {[%clk 0:03:02]}  b6 {[%clk 0:02:59]} 7. Bd3 {[%clk 0:03:02]}  Ba6 {[%clk 0:02:54]} 8. Bxa6 {[%clk 0:03:02]}  Nxa6 {[%clk 0:02:55]} 9. Qe2 {[%clk 0:03:03]}  Nb8 {[%clk 0:02:56]} 10. Bg5 {[%clk 0:03:02]}  Nbd7 {[%clk 0:02:52]} 11. O-O {[%clk 0:03:02]}  c5 {[%clk 0:02:51]} 12. a4 {[%clk 0:03:00]}  h6 {[%clk 0:02:46]} 13. Bh4 {[%clk 0:02:59]}  Qc7 {[%clk 0:02:46]} 14. Rfd1 {[%clk 0:02:29]}  Rfe8 {[%clk 0:02:31]} 15. Qa6 {[%clk 0:02:17]}  Ng4 {[%clk 0:02:23]} 16. Bg3 {[%clk 0:02:14]}  Bxg3 {[%clk 0:02:23]} 17. hxg3 {[%clk 0:02:15]}  e5 {[%clk 0:02:20]} 18. dxe5 {[%clk 0:02:15]}  Ndxe5 {[%clk 0:02:21]} 19. Nxe5 {[%clk 0:02:15]}  Qxe5 {[%clk 0:02:21]} 20. Nf3 {[%clk 0:02:16]}  Qh5 {[%clk 0:02:21]} 21. a5 {[%clk 0:02:12]}  Rab8 {[%clk 0:02:11]} 22. axb6 {[%clk 0:02:09]}  Rxb6 {[%clk 0:02:04]} 23. Qa4 {[%clk 0:02:06]}  Reb8 {[%clk 0:01:59]} 24. Qd7 {[%clk 0:01:14]}  Rxb2 {[%clk 0:01:59]} 25. Rxd5 {[%clk 0:00:59]}  Rb1+ {[%clk 0:01:56]} 26. Rd1 {[%clk 0:00:58]}  Rxd1+ {[%clk 0:01:21]} 27. Rxd1 {[%clk 0:00:59]}  Rb2 {[%clk 0:01:21]} 28. Rf1 {[%clk 0:00:54]}  a5 {[%clk 0:01:08]} 29. Qd8+ {[%clk 0:00:51]}  Kh7 {[%clk 0:01:08]} 30. Qxa5 {[%clk 0:00:52]}  Qd5 {[%clk 0:01:02]} 31. Qc7 {[%clk 0:00:44]}  Qa2 {[%clk 0:00:39]} 32. Qxc5 {[%clk 0:00:22]}  Nxf2 {[%clk 0:00:38]} 33. Qf5+ {[%clk 0:00:05]}  Kg8 {[%clk 0:00:38]} 34. Ng5 {[%clk 0:00:02]}  hxg5 {[%clk 0:00:28]} 35. Rxf2 {[%clk 0:00:02]}  Rxf2 {[%clk 0:00:29]} 36. Qxf2 {[%clk 0:00:03]}  Qa1+ {[%clk 0:00:30]} 37. Kh2 {[%clk 0:00:04]}  Qxc3 {[%clk 0:00:31]} 38. e4 {[%clk 0:00:04]}  g6 {[%clk 0:00:29]} 39. Qf3 {[%clk 0:00:04]}  Qe5 {[%clk 0:00:29]} 40. Qg4 {[%clk 0:00:04]} 1/2-1/2


[Site "https://www.chess.com"]

[Event "Titled Tuesday Blitz September 28 2021"]
[White "Leitao, Rafael"]
[Black "Kovanova, Baira"]
[WhiteFideId "2101246"]
[BlackFideId "4164083"]
[WhiteElo "2609"]
[BlackElo "2187"]
[Result "1-0"]
[Round "11"]
[TimeControl "180+1"]
[Date "2021.09.28"]
[WhiteClock "0:01:01"]
[BlackClock "0:01:17"]

1. c4 {[%clk 0:03:00]}  e5 {[%clk 0:02:59]} 2. Nc3 {[%clk 0:03:00]}  Nf6 {[%clk 0:02:59]} 3. Nf3 {[%clk 0:02:58]}  Nc6 {[%clk 0:02:59]} 4. e4 {[%clk 0:02:57]}  Bc5 {[%clk 0:02:48]} 5. Nxe5 {[%clk 0:02:51]}  Nxe5 {[%clk 0:02:46]} 6. d4 {[%clk 0:02:51]}  Bd6 {[%clk 0:02:46]} 7. c5 {[%clk 0:02:41]}  Bxc5 {[%clk 0:02:14]} 8. dxe5 {[%clk 0:02:37]}  Ng8 {[%clk 0:02:12]} 9. Bc4 {[%clk 0:02:28]}  Ne7 {[%clk 0:01:50]} 10. O-O {[%clk 0:02:26]}  O-O {[%clk 0:01:50]} 11. Bg5 {[%clk 0:02:25]}  h6 {[%clk 0:01:48]} 12. Bh4 {[%clk 0:02:15]}  Qe8 {[%clk 0:01:45]} 13. Qh5 {[%clk 0:01:45]}  Nc6 {[%clk 0:01:36]} 14. Bf6 {[%clk 0:01:37]}  gxf6 {[%clk 0:01:17]} 15. Qg6+ {[%clk 0:01:33]}  Kh8 {[%clk 0:01:17]} 16. Qxh6+ {[%clk 0:01:33]}  Kg8 {[%clk 0:01:17]} 17. exf6 {[%clk 0:01:01]} 1-0


[Site "https://www.chess.com"]